{"text_format":"1","workbook":"xlsx","n_sheets":1,"sheets":["2020"],"not_rendered":{"charts":0,"images":0,"macros":1,"external_links":0,"defined_names":1,"comments":1,"pivot_tables":0},"unopened":[],"bounds":{"document_bytes":16777216,"sheet_cells":100000,"rows_first":2000,"rows_last":500,"rows_between":2000,"halvings":0,"cell_chars":16384,"cell_head_chars":4096},"cells_cut":0,"cells_raw":0,"read":"whole","date_system":"1900"}

{"sheet":"2020","index":0,"n_rows":64,"n_cols":28,"rows_kept":64,"cut":false,"hidden":false,"merged":[[3,7,3,8],[62,6,62,12],[63,6,63,12],[7,4,7,5],[8,4,8,5],[6,7,6,10],[4,10,4,11]]}
[]
[]
[null,null,null,null,null,null,{"$f":"IF(Q3>20,1,2)","v":1},null,null,null,null,null,null,null,null,null,{"$f":"M4-E7","v":2021}]
[null,null,null,"Anmeldung",null,null,null,"Bitte Jahrgang eintragen",null,null,"Shooting Masters",null,2021,null,null,{"$f":"RIGHT(E8,LEN(E8)-SEARCH(\"@\",E8,1))","v":{"$error":"#VALUE!"}}]
[null,null,null,"Die unten angegebene Zeit ist die Startzeit zum ersten Wettkampfschuss."]
[null,null,null,"Name / Vorname","JG","Kategorie",null,null,null,null,null,null,"Lizenz"]
[null,null,null,null,null,{"$f":"IF(Q3>20,\"ELITE\",\"JUNIOR/IN\")","v":"ELITE"},null,"kein SSV Kader"]
[null,null,null,"E-Mail Adresse"]
[null,null,null,null,null,null,null,"\nMänner / Frauen\n(offene Klasse)\n3 x 20","\nFrauen\n3 x 40","\nCISM RF\n3 x 20","\nMänner\n3 x 40","\nMänner\nliegend","\nFrauen\nliegend",null,null,null,null,null,"3x20 M",null,null,"10m(40)","10(60)","50(60)","50(60/40/40)","50(20/20/20)"]
[]
[null,null,null,"Shooting Masters",1,"19. / 20. März 2021",null,null,null,null,null,null,null,null,null,false,false,true,false,false,false,null,null,{"$f":"COUNTIF(R11:R13,TRUE)","v":1},{"$f":"COUNTIF(S11:S13,TRUE)","v":0},{"$f":"COUNTIF(T11:T13,TRUE)","v":0},null,"kein SSV Kader"]
[null,null,null,"Brünig Indoor, Lungern",null,"Freitag",null,null,null,null,null,null,{"$f":"IF(T11=FALSE,\"\",\"Sa. 12:45-14:30\")","v":""},null,null,false,false,false,false,false,false,{"$f":"COUNTIF(P11:P14,TRUE)","v":0},{"$f":"COUNTIF(Q11:Q14,TRUE)","v":0},null,null,null,null,"Kader Spitzensport"]
[null,null,null,null,null,null,null,null,null,null,null,null,null,null,null,false,false,null,false]
[null,null,null,null,null,null,null,{"$f":"IF(S11=FALSE,\"\",\"Fr. 09:45-11:45\")","v":""},{"$f":"IF(R12=FALSE,\"\",\"Sa. 13:45-16:45\")","v":""},{"$f":"IF(S12=FALSE,\"\",\"Fr. 14:30-15:30\")","v":""},null,{"$f":"IF(T14=FALSE,\"\",\"Fr. 17:00-18:00\")","v":""},{"$f":"IF(T12=FALSE,\"\",\"Fr. 17:00-18:00\")","v":""},null,null,false,false,null,null,false]
[null,null,null,null,null,null,null,null,null,null,null,null,null,null,null,false]
[null,null,null,null,null,"Samstag"]
[]
[null,null,null,null,null,null,null,{"$f":"IF(P15=FALSE,\"\",\"So. 09:30-11:30\")","v":""},{"$f":"IF(S13=FALSE,\"\",\"Sa. 08:30-11:30\")","v":""},null,{"$f":"IF(U11=FALSE,\"\",\"Sa. 08:30-11:30\")","v":""}]
[null,null,null,null,null,null,null,null,null,null,null,null,null,null,null,null,false]
[null,null,null,"Shooting Masters",2,"16. / 17. April 2021",null,null,null,null,null,null,null,null,null,false,false,true,false,false,false,null,null,{"$f":"COUNTIF(R20:R22,TRUE)","v":1},{"$f":"COUNTIF(S20:S22,TRUE)","v":0},{"$f":"COUNTIF(T20:T22,TRUE)","v":0}]
[null,null,null,"Lostorf, Buchs AG",null,"Freitag",null,null,null,null,null,null,{"$f":"IF(T20=FALSE,\"\",\"Sa. 12:45-14:30\")","v":""},null,null,false,false,false,false,false,false,{"$f":"COUNTIF(P20:P23,TRUE)","v":0},{"$f":"COUNTIF(Q20:Q23,TRUE)","v":0}]
[null,null,null,null,null,null,null,null,null,null,null,null,null,null,null,false,false,null,false]
[null,null,null,null,null,null,null,{"$f":"IF(S20=FALSE,\"\",\"Fr. 09:45-11:45\")","v":""},{"$f":"IF(R21=FALSE,\"\",\"Sa. 13:45-16:45\")","v":""},{"$f":"IF(U20=FALSE,\"\",\"Fr. 14:30-15:30\")","v":""},null,{"$f":"IF(Q12=FALSE,\"\",\"Fr. 17:00-18:00\")","v":""},{"$f":"IF(T21=FALSE,\"\",\"Fr. 17:00-18:00\")","v":""},null,null,false,false]
[]
[null,null,null,null,null,"Samstag"]
[]
[null,null,null,null,null,null,null,null,{"$f":"IF(S21=FALSE,\"\",\"Sa. 08:30-11:30\")","v":""},null,{"$f":"IF(S22=FALSE,\"\",\"Sa. 08:30-11:30\")","v":""}]
[]
[null,null,null,"Shooting Masters",3,"27. / 28. August 2021",null,null,null,null,null,null,null,null,null,false,false,false,true,false,false,null,null,{"$f":"COUNTIF(R29:R31,TRUE)","v":0},{"$f":"COUNTIF(S29:S31,TRUE)","v":2},{"$f":"COUNTIF(T29:T31,TRUE)","v":0}]
[null,null,null,"Guntelsey, Thun",null,"Freitag",null,null,null,null,null,null,{"$f":"IF(T29=FALSE,\"\",\"Sa. 12:45-14:30\")","v":""},null,null,false,false,false,false,false,false,{"$f":"COUNTIF(P29:P32,TRUE)","v":0},{"$f":"COUNTIF(Q29:Q32,TRUE)","v":0}]
[null,null,null,null,null,null,null,null,null,null,null,null,null,null,null,false,false,false,true,false]
[null,null,{"$f":"IF(V30=2,\"10m Shooting Masters zählt der Sonntag\",IF(W30=2,\"10m Shooting Masters zählt der Sonntag\",\"\"))","v":""},null,null,null,null,{"$f":"IF(P29=FALSE,\"\",\"Fr. 09:45-11:45\")","v":""},{"$f":"IF(Q29=FALSE,\"\",\"Sa. 13:45-16:45\")","v":""},{"$f":"IF(R29=FALSE,\"\",\"Fr. 14:30-15:30\")","v":""},{"$f":"IF(R31=FALSE,\"\",\"Fr. 08:45-11:45\")","v":""},{"$f":"IF(T31=FALSE,\"\",\"Fr. 17:00-18:00\")","v":""},{"$f":"IF(T30=FALSE,\"\",\"Fr. 17:00-18:00\")","v":""},null,null,false,false,null,false]
[]
[null,null,null,null,null,"Samstag",null,null,null,null,null,null,null,null,null,null,false]
[]
[null,null,null,null,null,null,null,null,{"$f":"IF(S32=FALSE,\"\",\"Sa. 08:30-11:30\")","v":""},null,{"$f":"IF(S30=FALSE,\"\",\"Sa. 08:30-11:30\")","v":""},{"$f":"IF(Q34=FALSE,\"\",\"Fr. 14:30-15:30\")","v":""},{"$f":"IF(Q36=FALSE,\"\",\"Fr. 14:30-15:30\")","v":""},null,null,null,false]
[]
[]
[]
[null,null,null,null,null,null,null,null,{"$f":"IF(Q19=FALSE,\"\",\"So. 08:30-11:30\")","v":""},null,{"$f":"IF(S29=FALSE,\"\",\"So. 08:30-11:30\")","v":"So. 08:30-11:30"}]
[]
[null,null,null,"Shooting Masters",4,"14. + 16. August 2015",null,null,null,null,null,null,null,null,null,false,false,false,false,false,null,null,null,{"$f":"COUNTIF(R42:R44,TRUE)","v":0},{"$f":"COUNTIF(S42:S44,TRUE)","v":0},{"$f":"COUNTIF(T42:T44,TRUE)","v":0}]
[null,null,null,null,null,null,null,null,null,null,null,null,null,null,null,false,false,false,false,false,false,{"$f":"COUNTIF(P42:P45,TRUE)","v":0},{"$f":"COUNTIF(Q42:Q45,TRUE)","v":0}]
[null,null,null,null,null,null,null,null,null,null,null,null,null,null,null,false,false]
[null,null,null,null,null,null,null,{"$f":"IF(S42=FALSE,\"\",\"Fr. 10:00-11:00\")","v":""},{"$f":"IF(R43=FALSE,\"\",\"Fr.10:00-11:00\")","v":""},null,null,null,null,null,null,false,false]
[]
[]
[null,null,null,"Shooting Masters",4,"22 + 23. August 2015",null,null,null,null,null,null,null,null,null,false,false,false,false,false,null,null,null,{"$f":"COUNTIF(R48:R50,TRUE)","v":0},{"$f":"COUNTIF(S48:S50,TRUE)","v":0},{"$f":"COUNTIF(T48:T50,TRUE)","v":0}]
[null,null,null,null,null,null,null,null,null,null,null,null,null,null,null,false,false,false,false,false,false,{"$f":"COUNTIF(P49:P51,TRUE)","v":0},{"$f":"COUNTIF(Q48:Q51,TRUE)","v":0}]
[null,null,null,null,null,null,null,null,null,null,null,null,null,null,null,false,false]
[null,null,null,null,null,null,null,{"$f":"IF(S48=FALSE,\"\",\"Sa. 13:45-14:45\")","v":""},{"$f":"IF(R49=FALSE,\"\",\"Sa.13:45-14:45\")","v":""},null,null,null,null,null,null,false,false]
[]
[]
[null,null,null,"Shooting Masters",6,"22. / 23. August 2009",null,null,null,null,null,null,null,null,null,false,false,false,false,false]
[null,null,null,null,null,{"$f":"IF(Q55=FALSE,\"\",\"Samstag   09:00 - 10:45\")","v":""},null,null,{"$f":"IF(R54=FALSE,\"\",\"Sa. 15:30-16:45\")","v":""},null,null,null,null,null,null,false,false,null,false]
[null,null,null,null,null,{"$f":"IF(P55=FALSE,\"\",\"Samstag   11:15 - 12:30\")","v":""},null,null,null,null,null,null,null,null,null,false,false]
[null,null,null,null,null,{"$f":"IF(AND(Q56=FALSE,P56=FALSE),\"\",\"Samstag   13:00 - 14:15/14:45\")","v":""},null,null,null,null,null,null,null,null,null,false,false]
[null,null,null,null,null,{"$f":"IF(AND(Q57=FALSE,P57=FALSE),\"\",\"Samstag   15:15 - 16:30/17:00\")","v":""}]
[]
[]
[null,null,null,"Meldetermin","Montag 20:00 Uhr vor dem Shooting Masters"]
[]
[null,null,null,null,null,"Bemerkungen / Wünsche"]
[null,null,null,"jasmin.lustenberger@swissshooting.ch"]